{"text_format":"3","workbook":"xlsx","n_sheets":4,"sheets":["Grupa 1 ","Grupa 2 ","Grupa 3 ","Grupa 4"],"not_rendered":{"defined_names":1},"read":"whole","date_system":"1900"}

{"sheet":"Grupa 1 ","index":0,"n_rows":31,"n_cols":8,"rows_kept":31,"merged":[[15,0,15,1],[15,2,15,6],[17,0,17,6]]}
["FORMULARZ ASORTYMENTOWO - CENOWY             "]
[null,"Załącznik nr 2 "]
[]
[null,null,"Zapotrzebowanie","Jednostka miary","Cena jednostkowa netto (zł) za 1 szt","Wartość netto (zł)","% podatku VAT","Wartość brutto (zł)"]
["I. Grupa 1 – Testy i taśmy do Sterylizatorów parowych"]
["1.","Test-wskaźnik emulacyjny kontroli procesów sterylizacji para wodną\n W zakresie temperatur 1210 C/ 20 min i\n1340 C/ 7 min zmieniający barwę po osiągnięciu wszystkich parametrów sterylizacji parowej ( w wersji samoprzylepnej ) typ 6",7000,"szt",null,{"$f":"'Grupa 1 '!E6*'Grupa 1 '!C6","v":{"v":0,"d":"0.00"}},{"v":0.23,"d":"23.00%"},{"$f":"'Grupa 1 '!F6*(1+'Grupa 1 '!G6)","v":{"v":0,"d":"0.00"}}]
["2.","Test typu – Bowie Dick 1340 C – 3,5 min.\nWyraźnie zmieniający barwę na karcie testowej wewnątrz opakowania po osiągnięciu wszystkich parametrów sterylizacji parowej. ",350,"szt",null,{"$f":"'Grupa 1 '!E7*'Grupa 1 '!C7","v":{"v":0,"d":"0.00"}},{"v":0.23,"d":"23.00%"},{"$f":"'Grupa 1 '!F7*(1+'Grupa 1 '!G7)","v":{"v":0,"d":"0.00"}}]
["3.","Test typu Helix dla wsadu wgłębionego     \n7 min. /1340 C i 20 min./1210 C. Przyrząd testowy kontroli wsadu PCD oceniający proces sterylizacji w najtrudniej dostępnych miejscach np. w narzędziach rurowych. Składający się z przyrządu testowego Helix oraz samoprzylepnych wskaźników typu 6. Zmieniający barwę po\nosiągnięciu wszystkich parametrów sterylizacji parowej.",400,"szt",null,{"$f":"'Grupa 1 '!E8*'Grupa 1 '!C8","v":{"v":0,"d":"0.00"}},{"v":0.23,"d":"23.00%"},{"$f":"'Grupa 1 '!F8*(1+'Grupa 1 '!G8)","v":{"v":0,"d":"0.00"}}]
["4.","Test zgrzewu - Test powinien zawierać datę, rodzaj zgrzewarki, parametry zgrzewu, wynik, uwagi, wskazania konieczności ewent. działań korygujących.",750,"szt",null,{"$f":"'Grupa 1 '!E9*'Grupa 1 '!C9","v":{"v":0,"d":"0.00"}},{"v":0.23,"d":"23.00%"},{"$f":"'Grupa 1 '!F9*(1+'Grupa 1 '!G9)","v":{"v":0,"d":"0.00"}}]
["5.","Test biologiczny- fiolkowy do sterylizacji parą wodną na 24h inkubacji. Kompatybilny z inkubatorami dostepnymi na rynku. Powinien zawierać etykietę ze wskaźnikiem na ampułce, łatwy w użytkowaniu i identyfikacji. Po prawidłowym przebiegu sterylizacji zmiana koloru z niebieskiego na czarny.",200,"szt",null,{"$f":"'Grupa 1 '!E10*'Grupa 1 '!C10","v":{"v":0,"d":"0.00"}},{"v":0.23,"d":"23.00%"},{"$f":"'Grupa 1 '!F10*(1+'Grupa 1 '!G10)","v":{"v":0,"d":"0.00"}}]
["6.","Taśma neutralna (bez wskaźnika wzmocniona) 25mm x 50m, samoklejąca",110,"szt",null,{"$f":"'Grupa 1 '!E11*'Grupa 1 '!C11","v":{"v":0,"d":"0.00"}},{"v":0.23,"d":"23.00%"},{"$f":"'Grupa 1 '!F11*(1+'Grupa 1 '!G11)","v":{"v":0,"d":"0.00"}}]
["7.","Taśma wskaźnikowa (wzmocniona)\n25 mm x 50 m taśma samoklejąca do sterylizacji parowej. Na taśmie znajdują się zielone paski wskaźnikowe typu 1 zmieniające barwę po procesie sterylizacji z zielonego na czarny/ciemno brązowy.",60,"szt",null,{"$f":"'Grupa 1 '!E12*'Grupa 1 '!C12","v":{"v":0,"d":"0.00"}},{"v":0.23,"d":"23.00%"},{"$f":"'Grupa 1 '!F12*(1+'Grupa 1 '!G12)","v":{"v":0,"d":"0.00"}}]
[null,null,"RAZEM",null,null,{"$f":"SUM(F6:F12)","v":{"v":0,"d":"0.00"}},null,{"$f":"SUM(H6:H12)","v":{"v":0,"d":"0.00"}}]
[]
[]
["1. Cena brutto oferty (słownie): "]
[]
[]
[]
[]
[null,"Podpis składany jest w formie elektronicznej."]
{"$rows_empty":9}
[" "]

{"sheet":"Grupa 2 ","index":1,"n_rows":16,"n_cols":8,"rows_kept":16,"merged":[[0,0,0,7],[1,0,1,7],[4,0,4,7],[9,0,9,1],[9,2,9,7],[11,0,11,7]]}
["FORMULARZ ASORTYMENTOWO - CENOWY             "]
["Załącznik nr 2 "]
[]
[null,null,"Zapotrzebowanie","Jednostka miary","Cena jednostkowa netto (zł) za 1 szt","Wartość netto (zł)","% podatku VAT","Wartość brutto (zł)"]
[" Grupa 2 – Testy do Myjni - Dezynfektorów"]
["1.","Test skuteczności dezynfekcji termicznej 90 0 C/5 min.\nTest z naniesionym atramentem wskaźnikowym, który po osiągnięciu właściwych warunków dezynfekcji zmienia zabarwienie.",1400,"szt",null,{"$f":"'Grupa 2 '!E6*'Grupa 2 '!C6","v":{"v":0,"d":"0.00"}},{"v":0.23,"d":"23.00%"},{"$f":"'Grupa 2 '!F6*(1+'Grupa 2 '!G6)","v":{"v":0,"d":"0.00"}}]
["2.","Test pozostałości białkowych\nSłużący do wykrywania pozostałości zanieczyszczeń białkowych na powierzchniach i narzędziach chirurgicznych. W przypadku obecności pozostałości białkowych zmieniający zabarwienie na kolor ciemniejszy. Nie wymagający inkubacji. Czas odczytu możliwie jak najkrótszy.\n",100,"szt",null,{"$f":"'Grupa 2 '!E7*'Grupa 2 '!C7","v":{"v":0,"d":"0.00"}},{"v":0.23,"d":"23.00%"},{"$f":"'Grupa 2 '!F7*(1+'Grupa 2 '!G7)","v":{"v":0,"d":"0.00"}}]
[null,null,"RAZEM",null,null,{"$f":"SUM(F6:F7)","v":{"v":0,"d":"0.00"}},null,{"$f":"SUM(H6:H7)","v":{"v":0,"d":"0.00"}}]
[]
["1. Cena brutto oferty (słownie): ",null,"…………………………………………………………………………………."]
[]
[]
[]
[]
[]
[null,"Podpis składany jest w formie elektronicznej."]

{"sheet":"Grupa 3 ","index":2,"n_rows":13,"n_cols":8,"rows_kept":13,"merged":[[1,0,1,7],[4,0,4,7],[6,2,6,4],[9,0,9,1],[9,2,9,7],[11,0,11,7]]}
["FORMULARZ ASORTYMENTOWO - CENOWY             "]
[" Załącznik nr 2 "]
[]
[null,null,"Zapotrzebowanie","Jednostka miary","Cena jednostkowa netto (zł) za 1 szt","Wartość netto (zł)","% podatku VAT","Wartość brutto (zł)"]
[" Grupa 3 – Testy do Myjni - Dezynfektorów"]
["1.","Wskaźnik  skuteczności mycia w myjniach-dezynfektorach oraz myjniach ultradźwiękowych\nSubstancja testowa wskaźnika, naniesiona z 4 stron na plastikowy pasek, który pozwala na łatwą archiwizację. Syntetyczne zabrudzenie  imitujące ludzką krew i tkankę, białka, węglowodany, kwasy tłuszczowe i barwniki.",1000,"szt",null,{"$f":"'Grupa 3 '!E6*'Grupa 3 '!C6","v":{"v":0,"d":"0.00"}},{"v":0.23,"d":"23.00%"},{"$f":"'Grupa 3 '!F6*(1+'Grupa 3 '!G6)","v":{"v":0,"d":"0.00"}}]
[null,null,"RAZEM",null,null,{"$f":"SUM(F6:F6)","v":{"v":0,"d":"0.00"}},null,{"$f":"SUM(H6:H6)","v":{"v":0,"d":"0.00"}}]
[]
[]
["1. Cena brutto oferty (słownie): ",null,"…………………………………………………………………………………."]
[]
[]
[null,"Podpis składany jest w formie elektronicznej."]

{"sheet":"Grupa 4","index":3,"n_rows":27,"n_cols":8,"rows_kept":27,"merged":[[0,0,0,7],[1,0,1,7],[4,0,4,7],[25,0,25,1],[25,2,25,7],[27,0,27,7]]}
["FORMULARZ ASORTYMENTOWO - CENOWY             "]
[" Załącznik nr 2 "]
[]
[null,null,"Zapotrzebowanie","Jednostka miary","Cena jednostkowa netto (zł) ","Wartość netto (zł)","% podatku VAT","Wartość brutto (zł)"]
[" Grupa 4 – Opakowania do sterylizacji parą wodną"]
["1.","Papier krepowany: Gramatura 60 g/m2 (+/- 2 g/m2) Dobra przepuszczalność czynników sterylizujących oraz stabilność wymiarów w stanie mokrym oraz suchym, nietoksyczny, antystatyczny, niepylący, o wysokich parametrach wytrzymałościowych:  60 cm x 60 cm",1000,"szt.",null,{"$f":"$C6*$E6","v":{"v":0,"d":"0.00"}},{"v":0.08,"d":"8.00%"},{"$f":"$F6*(1+$G6)","v":{"v":0,"d":"0.00"}}]
["2.","Papier krepowany: Gramatura 60 g/m2 (+/- 2 g/m2) Dobra przepuszczalność czynników sterylizujących oraz stabilność wymiarów w stanie mokrym oraz suchym, nietoksyczny, antystatyczny, niepylący, o wysokich parametrach wytrzymałościowych:  75 cm x 75 cm",2000,"szt.",null,{"v":0,"d":"0.00"},{"v":0.08,"d":"8.00%"},{"v":0,"d":"0.00"}]
["3.","Papier krepowany: Gramatura 60 g/m2 (+/- 2 g/m2) Dobra przepuszczalność czynników sterylizujących oraz stabilność wymiarów w stanie mokrym oraz suchym, nietoksyczny, antystatyczny, niepylący, o wysokich parametrach wytrzymałościowych:  100 cm x 100 cm",5500,"szt.",null,{"v":0,"d":"0.00"},{"v":0.08,"d":"8.00%"},{"v":0,"d":"0.00"}]
["4.","Papier krepowany: Gramatura 60 g/m2 (+/- 2 g/m2) Dobra przepuszczalność czynników sterylizujących oraz stabilność wymiarów w stanie mokrym oraz suchym, nietoksyczny, antystatyczny, niepylący, o wysokich parametrach wytrzymałościowych:  120 cm x 120 cm",4000,"szt.",null,{"v":0,"d":"0.00"},{"v":0.08,"d":"8.00%"},{"v":0,"d":"0.00"}]
["5.","Papier włókninowy w arkuszach : Gramatura (min.60g/m2) Nieszeleszczący, antyrefleksyjny, antystatyczny. Wykonany z pulpy celulozowej (powyżej 50%) i włókna syntetycznego (poniżej 30%), połączonego spoiwem z dodatkami. Wytrzymałość na rozciąganie na sucho wzdłuż 2,1 kN/m, w poprzek 0,9 kN/m, na mokro wzdłuż 1,7 kN/m, w poprzek 0,7 kN/m : 75 cm x 75 cm",1500,"szt.",null,{"v":0,"d":"0.00"},{"v":0.08,"d":"8.00%"},{"v":0,"d":"0.00"}]
["6.","Papier włókninowy w arkuszach : Gramatura (min.60g/m2) Nieszeleszczący, antyrefleksyjny, antystatyczny. Wykonany z pulpy celulozowej (powyżej 50%) i włókna syntetycznego (poniżej 30%), połączonego spoiwem z dodatkami. Wytrzymałość na rozciąganie na sucho wzdłuż 2,1 kN/m, w poprzek 0,9 kN/m, na mokro wzdłuż 1,7 kN/m, w poprzek 0,7 kN/m : 100 cm x 100 cm",6000,"szt.",null,{"v":0,"d":"0.00"},{"v":0.08,"d":"8.00%"},{"v":0,"d":"0.00"}]
["7.","Papier włókninowy w arkuszach : Gramatura (min.60g/m2) Nieszeleszczący, antyrefleksyjny, antystatyczny. Wykonany z pulpy celulozowej (powyżej 50%) i włókna syntetycznego (poniżej 30%), połączonego spoiwem z dodatkami. Wytrzymałość na rozciąganie na sucho wzdłuż 2,1 kN/m, w poprzek 0,9 kN/m, na mokro wzdłuż 1,7 kN/m, w poprzek 0,7 kN/m : 120 cm x 120 cm",1300,"szt.",null,{"v":0,"d":"0.00"},{"v":0.08,"d":"8.00%"},{"v":0,"d":"0.00"}]
["8.","Rękaw papierowo-foliowy płaski :  masa powierzchniowa 60 g/m2,wytrzymałość na przedarcie, przenikanie powietrza, niezawilżalność wodą,  wytrzymałość na rozciąganie, wytrzymałość na przepuklenie. Laminat musi składać się z min. 7 warstw (licząc włącznie z warstwą  kleju) masa powierzchniowa 55 g/m2, przezroczysty, bez rozwarstwień, bez substancji toksycznych i porów, zgrzewalny w temperaturze 180-220ºC, wytrzymały, elastyczny (wydłużenie przy zerwaniu- 100 %). Wszystkie napisy i testy poza strefą pakowania, na papierze, w obrębie zgrzewu fabrycznego: *od strony laminatu muszą być widoczne następujące informacje: dane, pozwalające na identyfikację wytwórcy, znak ikonograficzny, jednoznacznie wskazujący na kierunek otwierania, informacja o zakazie używania, jeżeli opakowanie jest uszkodzone, informacja o możliwości jednorazowego użycia; *od strony papieru, muszą być widoczne następujące informacje: znak ikonograficzny, jednoznacznie wskazujący na kierunek otwierania, numer serii / LOT, rozmiar opakowania – szerokość i długość. Dostarczane w oryginalnych, firmowych opakowaniach. Termin ważności min. 36 miesięcy: 50 mm x 200 m",6,"rolka",null,{"v":0,"d":"0.00"},{"v":0.08,"d":"8.00%"},{"v":0,"d":"0.00"}]
["9.","Rękaw papierowo-foliowy płaski :  masa powierzchniowa 60 g/m2,wytrzymałość na przedarcie, przenikanie powietrza, niezawilżalność wodą,  wytrzymałość na rozciąganie, wytrzymałość na przepuklenie. Laminat musi składać się z min. 7 warstw (licząc włącznie z warstwą  kleju) masa powierzchniowa 55 g/m2, przezroczysty, bez rozwarstwień, bez substancji toksycznych i porów, zgrzewalny w temperaturze 180-220ºC, wytrzymały, elastyczny (wydłużenie przy zerwaniu- 100 %). Wszystkie napisy i testy poza strefą pakowania, na papierze, w obrębie zgrzewu fabrycznego: *od strony laminatu muszą być widoczne następujące informacje: dane, pozwalające na identyfikację wytwórcy, znak ikonograficzny, jednoznacznie wskazujący na kierunek otwierania, informacja o zakazie używania, jeżeli opakowanie jest uszkodzone, informacja o możliwości jednorazowego użycia; *od strony papieru, muszą być widoczne następujące informacje: znak ikonograficzny, jednoznacznie wskazujący na kierunek otwierania, numer serii / LOT, rozmiar opakowania – szerokość i długość. Dostarczane w oryginalnych, firmowych opakowaniach. Termin ważności min. 36 miesięcy: 75 mm x 200 m",12,"rolka",null,{"v":0,"d":"0.00"},{"v":0.08,"d":"8.00%"},{"v":0,"d":"0.00"}]
[10,"Rękaw papierowo-foliowy płaski :  masa powierzchniowa 60 g/m2,wytrzymałość na przedarcie, przenikanie powietrza, niezawilżalność wodą,  wytrzymałość na rozciąganie, wytrzymałość na przepuklenie. Laminat musi składać się z min. 7 warstw (licząc włącznie z warstwą  kleju) masa powierzchniowa 55 g/m2, przezroczysty, bez rozwarstwień, bez substancji toksycznych i porów, zgrzewalny w temperaturze 180-220ºC, wytrzymały, elastyczny (wydłużenie przy zerwaniu- 100 %). Wszystkie napisy i testy poza strefą pakowania, na papierze, w obrębie zgrzewu fabrycznego: *od strony laminatu muszą być widoczne następujące informacje: dane, pozwalające na identyfikację wytwórcy, znak ikonograficzny, jednoznacznie wskazujący na kierunek otwierania, informacja o zakazie używania, jeżeli opakowanie jest uszkodzone, informacja o możliwości jednorazowego użycia; *od strony papieru, muszą być widoczne następujące informacje: znak ikonograficzny, jednoznacznie wskazujący na kierunek otwierania, numer serii / LOT, rozmiar opakowania – szerokość i długość. Dostarczane w oryginalnych, firmowych opakowaniach. Termin ważności min. 36 miesięcy: 100 mm x 200 m",12,"rolka",null,{"v":0,"d":"0.00"},{"v":0.08,"d":"8.00%"},{"v":0,"d":"0.00"}]
[11,"Rękaw papierowo-foliowy płaski :  masa powierzchniowa 60 g/m2,wytrzymałość na przedarcie, przenikanie powietrza, niezawilżalność wodą,  wytrzymałość na rozciąganie, wytrzymałość na przepuklenie. Laminat musi składać się z min. 7 warstw (licząc włącznie z warstwą  kleju) masa powierzchniowa 55 g/m2, przezroczysty, bez rozwarstwień, bez substancji toksycznych i porów, zgrzewalny w temperaturze 180-220ºC, wytrzymały, elastyczny (wydłużenie przy zerwaniu- 100 %). Wszystkie napisy i testy poza strefą pakowania, na papierze, w obrębie zgrzewu fabrycznego: *od strony laminatu muszą być widoczne następujące informacje: dane, pozwalające na identyfikację wytwórcy, znak ikonograficzny, jednoznacznie wskazujący na kierunek otwierania, informacja o zakazie używania, jeżeli opakowanie jest uszkodzone, informacja o możliwości jednorazowego użycia; *od strony papieru, muszą być widoczne następujące informacje: znak ikonograficzny, jednoznacznie wskazujący na kierunek otwierania, numer serii / LOT, rozmiar opakowania – szerokość i długość. Dostarczane w oryginalnych, firmowych opakowaniach. Termin ważności min. 36 miesięcy: 150 mm x 200 mm",14,"rolka",null,{"v":0,"d":"0.00"},{"v":0.08,"d":"8.00%"},{"v":0,"d":"0.00"}]
[12,"Rękaw papierowo-foliowy płaski :  masa powierzchniowa 60 g/m2,wytrzymałość na przedarcie, przenikanie powietrza, niezawilżalność wodą,  wytrzymałość na rozciąganie, wytrzymałość na przepuklenie. Laminat musi składać się z min. 7 warstw (licząc włącznie z warstwą  kleju) masa powierzchniowa 55 g/m2, przezroczysty, bez rozwarstwień, bez substancji toksycznych i porów, zgrzewalny w temperaturze 180-220ºC, wytrzymały, elastyczny (wydłużenie przy zerwaniu- 100 %). Wszystkie napisy i testy poza strefą pakowania, na papierze, w obrębie zgrzewu fabrycznego: *od strony laminatu muszą być widoczne następujące informacje: dane, pozwalające na identyfikację wytwórcy, znak ikonograficzny, jednoznacznie wskazujący na kierunek otwierania, informacja o zakazie używania, jeżeli opakowanie jest uszkodzone, informacja o możliwości jednorazowego użycia; *od strony papieru, muszą być widoczne następujące informacje: znak ikonograficzny, jednoznacznie wskazujący na kierunek otwierania, numer serii / LOT, rozmiar opakowania – szerokość i długość. Dostarczane w oryginalnych, firmowych opakowaniach. Termin ważności min. 36 miesięcy: 200 mm x 200 m",12,"rolka",null,{"v":0,"d":"0.00"},{"v":0.08,"d":"8.00%"},{"v":0,"d":"0.00"}]
[13,"Rękaw papierowo-foliowy płaski :  masa powierzchniowa 60 g/m2,wytrzymałość na przedarcie, przenikanie powietrza, niezawilżalność wodą,  wytrzymałość na rozciąganie, wytrzymałość na przepuklenie. Laminat musi składać się z min. 7 warstw (licząc włącznie z warstwą  kleju) masa powierzchniowa 55 g/m2, przezroczysty, bez rozwarstwień, bez substancji toksycznych i porów, zgrzewalny w temperaturze 180-220ºC, wytrzymały, elastyczny (wydłużenie przy zerwaniu- 100 %). Wszystkie napisy i testy poza strefą pakowania, na papierze, w obrębie zgrzewu fabrycznego: *od strony laminatu muszą być widoczne następujące informacje: dane, pozwalające na identyfikację wytwórcy, znak ikonograficzny, jednoznacznie wskazujący na kierunek otwierania, informacja o zakazie używania, jeżeli opakowanie jest uszkodzone, informacja o możliwości jednorazowego użycia; *od strony papieru, muszą być widoczne następujące informacje: znak ikonograficzny, jednoznacznie wskazujący na kierunek otwierania, numer serii / LOT, rozmiar opakowania – szerokość i długość. Dostarczane w oryginalnych, firmowych opakowaniach. Termin ważności min. 36 miesięcy: 400 mm x 200 m",8,"rolka",null,{"v":0,"d":"0.00"},{"v":0.08,"d":"8.00%"},{"v":0,"d":"0.00"}]
[14,"Rękaw papierowo-foliowy z zakładką :  masa powierzchniowa 60 g/m2,wytrzymałość na przedarcie, przenikanie powietrza, niezawilżalność wodą,  wytrzymałość na rozciąganie, wytrzymałość na przepuklenie. Laminat musi składać się z min. 7 warstw (licząc włącznie z warstwą  kleju) masa powierzchniowa 55 g/m2, przezroczysty, bez rozwarstwień, bez substancji toksycznych i porów, zgrzewalny w temperaturze 180-220ºC, wytrzymały, elastyczny (wydłużenie przy zerwaniu- 100 %). Wszystkie napisy i testy poza strefą pakowania, na papierze, w obrębie zgrzewu fabrycznego: *od strony laminatu muszą być widoczne następujące informacje: dane, pozwalające na identyfikację wytwórcy, znak ikonograficzny, jednoznacznie wskazujący na kierunek otwierania, informacja o zakazie używania, jeżeli opakowanie jest uszkodzone, informacja o możliwości jednorazowego użycia; *od strony papieru, muszą być widoczne następujące informacje: znak ikonograficzny, jednoznacznie wskazujący na kierunek otwierania, numer serii / LOT, rozmiar opakowania – szerokość i długość. Dostarczane w oryginalnych, firmowych opakowaniach. Termin ważności min. 36 miesięcy : 75 mm x 25 mm x 100 mm",9,"rolka",null,{"v":0,"d":"0.00"},{"v":0.08,"d":"8.00%"},{"v":0,"d":"0.00"}]
[15,"Rękaw papierowo-foliowy z zakładką :  masa powierzchniowa 60 g/m2,wytrzymałość na przedarcie, przenikanie powietrza, niezawilżalność wodą,  wytrzymałość na rozciąganie, wytrzymałość na przepuklenie. Laminat musi składać się z min. 7 warstw (licząc włącznie z warstwą  kleju) masa powierzchniowa 55 g/m2, przezroczysty, bez rozwarstwień, bez substancji toksycznych i porów, zgrzewalny w temperaturze 180-220ºC, wytrzymały, elastyczny (wydłużenie przy zerwaniu- 100 %). Wszystkie napisy i testy poza strefą pakowania, na papierze, w obrębie zgrzewu fabrycznego: *od strony laminatu muszą być widoczne następujące informacje: dane, pozwalające na identyfikację wytwórcy, znak ikonograficzny, jednoznacznie wskazujący na kierunek otwierania, informacja o zakazie używania, jeżeli opakowanie jest uszkodzone, informacja o możliwości jednorazowego użycia; *od strony papieru, muszą być widoczne następujące informacje: znak ikonograficzny, jednoznacznie wskazujący na kierunek otwierania, numer serii / LOT, rozmiar opakowania – szerokość i długość. Dostarczane w oryginalnych, firmowych opakowaniach. Termin ważności min. 36 miesięcy : 100 mm x 40 mm x 100 mm",18,"rolka",null,{"v":0,"d":"0.00"},{"v":0.08,"d":"8.00%"},{"v":0,"d":"0.00"}]
[16,"Rękaw papierowo-foliowy z zakładką :  masa powierzchniowa 60 g/m2,wytrzymałość na przedarcie, przenikanie powietrza, niezawilżalność wodą,  wytrzymałość na rozciąganie, wytrzymałość na przepuklenie. Laminat musi składać się z min. 7 warstw (licząc włącznie z warstwą  kleju) masa powierzchniowa 55 g/m2, przezroczysty, bez rozwarstwień, bez substancji toksycznych i porów, zgrzewalny w temperaturze 180-220ºC, wytrzymały, elastyczny (wydłużenie przy zerwaniu- 100 %). Wszystkie napisy i testy poza strefą pakowania, na papierze, w obrębie zgrzewu fabrycznego: *od strony laminatu muszą być widoczne następujące informacje: dane, pozwalające na identyfikację wytwórcy, znak ikonograficzny, jednoznacznie wskazujący na kierunek otwierania, informacja o zakazie używania, jeżeli opakowanie jest uszkodzone, informacja o możliwości jednorazowego użycia; *od strony papieru, muszą być widoczne następujące informacje: znak ikonograficzny, jednoznacznie wskazujący na kierunek otwierania, numer serii / LOT, rozmiar opakowania – szerokość i długość. Dostarczane w oryginalnych, firmowych opakowaniach. Termin ważności min. 36 miesięcy : 150 mm x 50 mm x 100 mm",14,"rolka",null,{"v":0,"d":"0.00"},{"v":0.08,"d":"8.00%"},{"v":0,"d":"0.00"}]
[17,"Rękaw papierowo-foliowy z zakładką :  masa powierzchniowa 60 g/m2,wytrzymałość na przedarcie, przenikanie powietrza, niezawilżalność wodą,  wytrzymałość na rozciąganie, wytrzymałość na przepuklenie. Laminat musi składać się z min. 7 warstw (licząc włącznie z warstwą  kleju) masa powierzchniowa 55 g/m2, przezroczysty, bez rozwarstwień, bez substancji toksycznych i porów, zgrzewalny w temperaturze 180-220ºC, wytrzymały, elastyczny (wydłużenie przy zerwaniu- 100 %). Wszystkie napisy i testy poza strefą pakowania, na papierze, w obrębie zgrzewu fabrycznego: *od strony laminatu muszą być widoczne następujące informacje: dane, pozwalające na identyfikację wytwórcy, znak ikonograficzny, jednoznacznie wskazujący na kierunek otwierania, informacja o zakazie używania, jeżeli opakowanie jest uszkodzone, informacja o możliwości jednorazowego użycia; *od strony papieru, muszą być widoczne następujące informacje: znak ikonograficzny, jednoznacznie wskazujący na kierunek otwierania, numer serii / LOT, rozmiar opakowania – szerokość i długość. Dostarczane w oryginalnych, firmowych opakowaniach. Termin ważności min. 36 miesięcy : 200 mm x 50 mm x 100 mm",19,"rolka",null,{"v":0,"d":"0.00"},{"v":0.08,"d":"8.00%"},{"v":0,"d":"0.00"}]
[18,"Rękaw włókninowo – foliowy płaski: Włóknina, z której wykonane są rękawy włókninowo – foliowe: Masa powierzchniowa 60 g/m2 wytrzymałość na przedarcie, wytrzymałość na rozciąganie, wytrzymałość na przepuklenie.  Laminat foliowy, z którego zbudowane są rękawy włókninowo – foliowe: Ilość warstw: 7 warstw (licząc włącznie z warstwą kleju) masa powierzchniowa 53 g/m2, przezroczysty, bez rozwarstwień, bez substancji toksycznych i porów, zgrzewalny w temperaturze 180-220ºC wytrzymałość na przepuklenie. Elastyczny, wszystkie napisy i testy poza strefą pakowania, na włókninie, w obrębie zgrzewu fabrycznego. Od strony laminatu widoczne następujące informacje: dane, pozwalające na identyfikację wytwórcy, znak ikonograficzny, \njednoznacznie wskazujący na kierunek otwierania, informacja o zakazie \nużywania, jeżeli opakowanie jest uszkodzone, informacja o możliwości jednorazowego użycia. Od strony włókniny widoczne następujące informacje: znak ikonograficzny, \njednoznacznie wskazujący na kierunek otwierania, napisy na opakowaniach m. in. w języku polskim. Informacja o kolorze wskaźnika przed oraz po procesie sterylizacji. Termin ważności min. 36 miesięcy : 420 mm x 100 m",3,"rolka",null,{"v":0,"d":"0.00"},{"v":0.08,"d":"8.00%"},{"v":0,"d":"0.00"}]
[null,null,"RAZEM",null,null,{"$f":"SUM(F6:F23)","v":{"v":0,"d":"0.00"}},null,{"$f":"SUM(H6:H23)","v":{"v":0,"d":"0.00"}}]
[]
["1. Cena brutto oferty (słownie): ",null,"…………………………………………………………………………………."]
[null,"Podpis składany jest w formie elektronicznej."]